[Event "Titled Tuesday Blitz April 26 Late 2022"]
[White "Gomez Dieguez, David"]
[Black "Vega Gutierrez, Sabrina"]
[WhiteFideId "22223630"]
[BlackFideId "2219026"]
[WhiteElo "2115"]
[BlackElo "2286"]
[Result "0-1"]
[Round "09"]
[TimeControl "180+1"]
[Date "2022.04.26"]
[WhiteClock "0:00:06"]
[BlackClock "0:00:06"]

1. c4 {[%clk 0:03:00]}  e5 {[%clk 0:02:59]} 2. Nc3 {[%clk 0:03:00]}  d6 {[%clk 0:02:59]} 3. g3 {[%clk 0:02:55]}  f5 {[%clk 0:02:59]} 4. d4 {[%clk 0:02:46]}  Be7 {[%clk 0:02:46]} 5. Bh3 {[%clk 0:02:39]}  e4 {[%clk 0:02:45]} 6. Nd5 {[%clk 0:02:30]}  c6 {[%clk 0:02:43]} 7. Nxe7 {[%clk 0:02:26]}  Qxe7 {[%clk 0:02:42]} 8. d5 {[%clk 0:02:24]}  c5 {[%clk 0:02:17]} 9. Bg2 {[%clk 0:02:14]}  Nd7 {[%clk 0:02:13]} 10. Nh3 {[%clk 0:02:14]}  Ne5 {[%clk 0:02:12]} 11. b3 {[%clk 0:02:12]}  Nf6 {[%clk 0:02:10]} 12. O-O {[%clk 0:02:10]}  O-O {[%clk 0:02:06]} 13. Bb2 {[%clk 0:02:07]}  Nfg4 {[%clk 0:02:02]} 14. Nf4 {[%clk 0:01:54]}  Bd7 {[%clk 0:01:53]} 15. h3 {[%clk 0:01:54]}  Nf6 {[%clk 0:01:48]} 16. h4 {[%clk 0:01:40]}  Nfg4 {[%clk 0:01:45]} 17. Qd2 {[%clk 0:01:36]}  Rae8 {[%clk 0:01:43]} 18. Rad1 {[%clk 0:01:36]}  Rf6 {[%clk 0:01:41]} 19. Bh3 {[%clk 0:01:28]}  Rh6 {[%clk 0:01:38]} 20. Kg2 {[%clk 0:01:26]}  b5 {[%clk 0:00:48]} 21. Qc3 {[%clk 0:01:15]}  bxc4 {[%clk 0:00:43]} 22. bxc4 {[%clk 0:01:16]}  Rb8 {[%clk 0:00:43]} 23. a3 {[%clk 0:01:00]}  Ba4 {[%clk 0:00:41]} 24. Rc1 {[%clk 0:00:53]}  Rb3 {[%clk 0:00:40]} 25. Qd2 {[%clk 0:00:53]}  Qb7 {[%clk 0:00:40]} 26. Bxe5 {[%clk 0:00:53]}  dxe5 {[%clk 0:00:36]} 27. Bxg4 {[%clk 0:00:53]}  exf4 {[%clk 0:00:31]} 28. Bxf5 {[%clk 0:00:51]}  f3+ {[%clk 0:00:10]} 29. exf3 {[%clk 0:00:49]}  exf3+ {[%clk 0:00:11]} 30. Kg1 {[%clk 0:00:48]}  Bd7 {[%clk 0:00:11]} 31. Qg5 {[%clk 0:00:39]}  Rf6 {[%clk 0:00:10]} 32. Be6+ {[%clk 0:00:28]}  Bxe6 {[%clk 0:00:10]} 33. dxe6 {[%clk 0:00:28]}  Qe7 {[%clk 0:00:09]} 34. Rfe1 {[%clk 0:00:27]}  Rb6 {[%clk 0:00:07]} 35. Re5 {[%clk 0:00:20]}  h6 {[%clk 0:00:07]} 36. Qe3 {[%clk 0:00:19]}  Rbxe6 {[%clk 0:00:04]} 37. Rxe6 {[%clk 0:00:16]}  Qxe6 {[%clk 0:00:05]} 38. Re1 {[%clk 0:00:15]}  Qh3 {[%clk 0:00:05]} 39. Qe8+ {[%clk 0:00:13]}  Rf8 {[%clk 0:00:03]} 40. Qe6+ {[%clk 0:00:13]}  Qxe6 {[%clk 0:00:03]} 41. Rxe6 {[%clk 0:00:14]}  Rb8 {[%clk 0:00:03]} 42. Re3 {[%clk 0:00:12]}  Rb1+ {[%clk 0:00:03]} 43. Kh2 {[%clk 0:00:12]}  Rc1 {[%clk 0:00:03]} 44. Rxf3 {[%clk 0:00:12]}  Rxc4 {[%clk 0:00:04]} 45. Kg2 {[%clk 0:00:10]}  Rc2 {[%clk 0:00:04]} 46. Rf5 {[%clk 0:00:10]}  c4 {[%clk 0:00:04]} 47. Ra5 {[%clk 0:00:09]}  Ra2 {[%clk 0:00:04]} 48. Rxa7 {[%clk 0:00:10]}  c3 {[%clk 0:00:04]} 49. a4 {[%clk 0:00:08]}  c2 {[%clk 0:00:04]} 50. Rc7 {[%clk 0:00:08]}  h5 {[%clk 0:00:03]} 51. Kf3 {[%clk 0:00:07]}  Rxa4 {[%clk 0:00:02]} 52. Rxc2 {[%clk 0:00:07]}  Kf7 {[%clk 0:00:02]} 53. Rc5 {[%clk 0:00:06]}  g6 {[%clk 0:00:02]} 54. Rc6 {[%clk 0:00:06]}  Kg7 {[%clk 0:00:02]} 55. Kg2 {[%clk 0:00:06]}  Kf7 {[%clk 0:00:02]} 56. f3 {[%clk 0:00:07]}  Ra3 {[%clk 0:00:02]} 57. Rc4 {[%clk 0:00:05]}  Kf6 {[%clk 0:00:02]} 58. Rf4+ {[%clk 0:00:05]}  Kg7 {[%clk 0:00:02]} 59. Kh3 {[%clk 0:00:06]}  Kh6 {[%clk 0:00:02]} 60. Rf7 {[%clk 0:00:06]}  Rb3 {[%clk 0:00:01]} 61. Rf6 {[%clk 0:00:05]}  Ra3 {[%clk 0:00:02]} 62. Rf7 {[%clk 0:00:02]}  Rc3 {[%clk 0:00:02]} 63. Kg2 {[%clk 0:00:03]}  Ra3 {[%clk 0:00:02]} 64. Kf2 {[%clk 0:00:03]}  Rb3 {[%clk 0:00:02]} 65. Ke2 {[%clk 0:00:04]}  Ra3 {[%clk 0:00:03]} 66. Kd2 {[%clk 0:00:04]}  Rb3 {[%clk 0:00:03]} 67. Kc2 {[%clk 0:00:04]}  Ra3 {[%clk 0:00:04]} 68. Kd2 {[%clk 0:00:03]}  Rb3 {[%clk 0:00:04]} 69. Ke2 {[%clk 0:00:04]}  Ra3 {[%clk 0:00:04]} 70. g4 {[%clk 0:00:05]}  hxg4 {[%clk 0:00:03]} 71. fxg4 {[%clk 0:00:05]}  Rh3 {[%clk 0:00:03]} 72. g5+ {[%clk 0:00:03]}  Kh5 {[%clk 0:00:03]} 73. Rh7+ {[%clk 0:00:03]}  Kg4 {[%clk 0:00:03]} 74. Rh6 {[%clk 0:00:03]}  Kf5 {[%clk 0:00:03]} 75. Kf2 {[%clk 0:00:02]}  Ra3 {[%clk 0:00:03]} 76. Kg2 {[%clk 0:00:02]}  Rb3 {[%clk 0:00:03]} 77. Rh8 {[%clk 0:00:01]}  Ra3 {[%clk 0:00:03]} 78. Rf8+ {[%clk 0:00:02]}  Kg4 {[%clk 0:00:03]} 79. Rh8 {[%clk 0:00:03]}  Ra2+ {[%clk 0:00:03]} 80. Kf1 {[%clk 0:00:02]}  Kf3 {[%clk 0:00:03]} 81. Ke1 {[%clk 0:00:03]}  Kg4 {[%clk 0:00:03]} 82. Kf1 {[%clk 0:00:03]}  Rh2 {[%clk 0:00:03]} 83. Kg1 {[%clk 0:00:03]}  Rxh4 {[%clk 0:00:03]} 84. Rg8 {[%clk 0:00:02]}  Kxg5 {[%clk 0:00:04]} 85. Kg2 {[%clk 0:00:02]}  Ra4 {[%clk 0:00:04]} 86. Kf3 {[%clk 0:00:02]}  Ra3+ {[%clk 0:00:04]} 87. Kf2 {[%clk 0:00:03]}  Kf5 {[%clk 0:00:03]} 88. Rf8+ {[%clk 0:00:03]}  Kg4 {[%clk 0:00:04]} 89. Rg8 {[%clk 0:00:04]}  g5 {[%clk 0:00:04]} 90. Rg7 {[%clk 0:00:03]}  Ra2+ {[%clk 0:00:04]} 91. Kg1 {[%clk 0:00:04]}  Kf4 {[%clk 0:00:04]} 92. Rf7+ {[%clk 0:00:03]}  Kg3 {[%clk 0:00:04]} 93. Kf1 {[%clk 0:00:02]}  Ra1+ {[%clk 0:00:04]} 94. Ke2 {[%clk 0:00:02]}  g4 {[%clk 0:00:05]} 95. Ke3 {[%clk 0:00:03]}  Kg2 {[%clk 0:00:05]} 96. Ke2 {[%clk 0:00:03]}  g3 {[%clk 0:00:05]} 97. Rf6 {[%clk 0:00:03]}  Ra2+ {[%clk 0:00:05]} 98. Ke1 {[%clk 0:00:04]}  Kg1 {[%clk 0:00:05]} 99. Rf5 {[%clk 0:00:03]}  g2 {[%clk 0:00:05]} 100. Rf8 {[%clk 0:00:04]}  Ra1+ {[%clk 0:00:06]} 101. Ke2 {[%clk 0:00:04]}  Rf1 {[%clk 0:00:06]} 102. Rg8 {[%clk 0:00:05]}  Rf5 {[%clk 0:00:06]} 103. Rh8 {[%clk 0:00:05]}  Re5+ {[%clk 0:00:05]} 104. Kf3 {[%clk 0:00:06]}  Kf1 {[%clk 0:00:05]} 105. Rg8 {[%clk 0:00:05]}  g1=Q {[%clk 0:00:05]} 106. Rxg1+ {[%clk 0:00:05]}  Kxg1 {[%clk 0:00:06]} 107. Kf4 {[%clk 0:00:06]}  Re8 {[%clk 0:00:06]} 0-1


[Site "https://www.chess.com"]

[Event "Titled Tuesday Blitz April 26 Late 2022"]
[White "Harish, Neeraj"]
[Black "Carrasco Miranda, Andres"]
[WhiteFideId "30958130"]
[BlackFideId "3405990"]
[WhiteElo "1574"]
[BlackElo "2177"]
[Result "0-1"]
[Round "09"]
[TimeControl "180+1"]
[Date "2022.04.26"]
[WhiteClock "0:00:08"]
[BlackClock "0:00:03"]

1. e4 {[%clk 0:02:54]}  c5 {[%clk 0:02:51]} 2. Nf3 {[%clk 0:02:51]}  d6 {[%clk 0:02:51]} 3. d4 {[%clk 0:02:51]}  cxd4 {[%clk 0:02:52]} 4. Nxd4 {[%clk 0:02:52]}  Nf6 {[%clk 0:02:51]} 5. Nc3 {[%clk 0:02:52]}  a6 {[%clk 0:02:47]} 6. Be3 {[%clk 0:02:51]}  e5 {[%clk 0:02:46]} 7. Nb3 {[%clk 0:02:51]}  Be6 {[%clk 0:02:46]} 8. f3 {[%clk 0:02:46]}  h5 {[%clk 0:02:46]} 9. Qd2 {[%clk 0:02:45]}  Nbd7 {[%clk 0:02:45]} 10. Nd5 {[%clk 0:02:34]}  Bxd5 {[%clk 0:02:43]} 11. exd5 {[%clk 0:02:35]}  g6 {[%clk 0:02:43]} 12. Be2 {[%clk 0:02:32]}  Bg7 {[%clk 0:02:42]} 13. O-O {[%clk 0:02:27]}  Rc8 {[%clk 0:02:42]} 14. Na5 {[%clk 0:02:24]}  Qc7 {[%clk 0:02:39]} 15. c4 {[%clk 0:02:23]}  O-O {[%clk 0:02:35]} 16. Rac1 {[%clk 0:02:23]}  e4 {[%clk 0:02:35]} 17. b4 {[%clk 0:02:00]}  exf3 {[%clk 0:02:29]} 18. Bxf3 {[%clk 0:01:58]}  Ne5 {[%clk 0:02:26]} 19. c5 {[%clk 0:01:43]}  Nfg4 {[%clk 0:02:20]} 20. Bxg4 {[%clk 0:01:31]}  Nxg4 {[%clk 0:02:19]} 21. Bf4 {[%clk 0:01:31]}  Be5 {[%clk 0:01:21]} 22. h3 {[%clk 0:00:59]}  Bxf4 {[%clk 0:01:17]} 23. Qxf4 {[%clk 0:00:59]}  Ne5 {[%clk 0:01:18]} 24. Nc4 {[%clk 0:00:51]}  Nd3 {[%clk 0:01:05]} 25. Qxd6 {[%clk 0:00:44]}  Nxc1 {[%clk 0:00:57]} 26. Qxc7 {[%clk 0:00:44]}  Ne2+ {[%clk 0:00:55]} 27. Kf2 {[%clk 0:00:42]}  Rxc7 {[%clk 0:00:56]} 28. Kxe2 {[%clk 0:00:42]}  Re8+ {[%clk 0:00:45]} 29. Kd3 {[%clk 0:00:31]}  b5 {[%clk 0:00:24]} 30. Nb6 {[%clk 0:00:18]}  Rce7 {[%clk 0:00:23]} 31. d6 {[%clk 0:00:18]}  Re3+ {[%clk 0:00:23]} 32. Kd2 {[%clk 0:00:17]}  Re2+ {[%clk 0:00:21]} 33. Kd1 {[%clk 0:00:17]}  Rxa2 {[%clk 0:00:21]} 34. d7 {[%clk 0:00:14]}  Rd8 {[%clk 0:00:22]} 35. c6 {[%clk 0:00:12]}  Ra1+ {[%clk 0:00:20]} 36. Ke2 {[%clk 0:00:12]}  Ra2+ {[%clk 0:00:20]} 37. Ke3 {[%clk 0:00:12]}  Rc2 {[%clk 0:00:21]} 38. Rf6 {[%clk 0:00:10]}  Kg7 {[%clk 0:00:20]} 39. Rd6 {[%clk 0:00:10]}  f5 {[%clk 0:00:18]} 40. Nd5 {[%clk 0:00:10]}  Kf7 {[%clk 0:00:18]} 41. c7 {[%clk 0:00:10]}  Rxc7 {[%clk 0:00:16]} 42. Nxc7 {[%clk 0:00:11]}  Ke7 {[%clk 0:00:17]} 43. Rd3 {[%clk 0:00:11]}  Rxd7 {[%clk 0:00:18]} 44. Rxd7+ {[%clk 0:00:12]}  Kxd7 {[%clk 0:00:18]} 45. Nxa6 {[%clk 0:00:12]}  Kc6 {[%clk 0:00:18]} 46. Nc5 {[%clk 0:00:13]}  Kd5 {[%clk 0:00:18]} 47. Kf4 {[%clk 0:00:14]}  Kc4 {[%clk 0:00:18]} 48. Kg5 {[%clk 0:00:15]}  Kxb4 {[%clk 0:00:18]} 49. Ne6 {[%clk 0:00:14]}  Kc4 {[%clk 0:00:18]} 50. Kxg6 {[%clk 0:00:15]}  b4 {[%clk 0:00:18]} 51. Kxf5 {[%clk 0:00:15]}  b3 {[%clk 0:00:18]} 52. Kg5 {[%clk 0:00:13]}  b2 {[%clk 0:00:18]} 53. Kxh5 {[%clk 0:00:14]}  b1=Q {[%clk 0:00:19]} 54. g4 {[%clk 0:00:14]}  Kd5 {[%clk 0:00:16]} 55. Nf4+ {[%clk 0:00:13]}  Ke4 {[%clk 0:00:17]} 56. Ng6 {[%clk 0:00:13]}  Qd3 {[%clk 0:00:13]} 57. h4 {[%clk 0:00:13]}  Qd5+ {[%clk 0:00:10]} 58. g5 {[%clk 0:00:13]}  Qf7 {[%clk 0:00:05]} 59. Kh6 {[%clk 0:00:13]}  Kf5 {[%clk 0:00:05]} 60. h5 {[%clk 0:00:14]}  Qe8 {[%clk 0:00:02]} 61. Nh4+ {[%clk 0:00:12]}  Kg4 {[%clk 0:00:03]} 62. g6 {[%clk 0:00:12]}  Kxh4 {[%clk 0:00:02]} 63. g7 {[%clk 0:00:11]}  Qf7 {[%clk 0:00:02]} 64. Kh7 {[%clk 0:00:10]}  Kxh5 {[%clk 0:00:02]} 65. Kh8 {[%clk 0:00:09]}  Kh6 {[%clk 0:00:03]} 66. g8=Q {[%clk 0:00:08]}  Qf6+ {[%clk 0:00:03]} 0-1


[Site "https://www.chess.com"]

[Event "Titled Tuesday Blitz April 26 Late 2022"]
[White "Hnydiuk, Aleksander"]
[Black "Kamsky, Gata"]
[WhiteFideId "1109057"]
[BlackFideId "2000024"]
[WhiteElo "2374"]
[BlackElo "2645"]
[Result "0-1"]
[Round "09"]
[TimeControl "180+1"]
[Date "2022.04.26"]
[WhiteClock "0:00:03"]
[BlackClock "0:00:17"]

1. Nf3 {[%clk 0:03:00]}  f5 {[%clk 0:02:58]} 2. g3 {[%clk 0:02:59]}  Nf6 {[%clk 0:02:57]} 3. Bg2 {[%clk 0:03:00]}  g6 {[%clk 0:02:58]} 4. O-O {[%clk 0:03:00]}  Bg7 {[%clk 0:02:58]} 5. c4 {[%clk 0:03:01]}  d6 {[%clk 0:02:57]} 6. d4 {[%clk 0:03:01]}  O-O {[%clk 0:02:56]} 7. Nc3 {[%clk 0:03:01]}  c6 {[%clk 0:02:57]} 8. d5 {[%clk 0:03:02]}  e5 {[%clk 0:02:56]} 9. dxe6 {[%clk 0:03:01]}  Bxe6 {[%clk 0:02:56]} 10. b3 {[%clk 0:03:02]}  Na6 {[%clk 0:02:53]} 11. Bb2 {[%clk 0:02:59]}  Qe7 {[%clk 0:02:49]} 12. Rc1 {[%clk 0:02:49]}  Rad8 {[%clk 0:02:48]} 13. Qc2 {[%clk 0:02:47]}  Kh8 {[%clk 0:02:43]} 14. Rfd1 {[%clk 0:02:46]}  Bg8 {[%clk 0:02:40]} 15. e3 {[%clk 0:02:27]}  Nc5 {[%clk 0:02:37]} 16. b4 {[%clk 0:02:13]}  Ncd7 {[%clk 0:02:36]} 17. Ne2 {[%clk 0:01:58]}  d5 {[%clk 0:02:31]} 18. cxd5 {[%clk 0:01:55]}  Bxd5 {[%clk 0:02:28]} 19. a3 {[%clk 0:01:39]}  Nb6 {[%clk 0:02:21]} 20. Nf4 {[%clk 0:01:31]}  Bg8 {[%clk 0:01:58]} 21. Ne5 {[%clk 0:01:31]}  Bf7 {[%clk 0:01:24]} 22. Rxd8 {[%clk 0:01:18]}  Rxd8 {[%clk 0:01:19]} 23. Rd1 {[%clk 0:01:19]}  Rxd1+ {[%clk 0:01:17]} 24. Qxd1 {[%clk 0:01:20]}  Kg8 {[%clk 0:00:57]} 25. Nxf7 {[%clk 0:01:18]}  Qxf7 {[%clk 0:00:55]} 26. Qd8+ {[%clk 0:01:15]}  Ne8 {[%clk 0:00:44]} 27. Bxg7 {[%clk 0:01:11]}  Kxg7 {[%clk 0:00:43]} 28. Qd4+ {[%clk 0:00:51]}  Qf6 {[%clk 0:00:36]} 29. Ne6+ {[%clk 0:00:47]}  Kf7 {[%clk 0:00:36]} 30. Nd8+ {[%clk 0:00:47]}  Ke7 {[%clk 0:00:34]} 31. Qxf6+ {[%clk 0:00:44]}  Nxf6 {[%clk 0:00:32]} 32. Nxb7 {[%clk 0:00:45]}  Nc4 {[%clk 0:00:29]} 33. a4 {[%clk 0:00:35]}  Kd7 {[%clk 0:00:29]} 34. Nc5+ {[%clk 0:00:32]}  Kd6 {[%clk 0:00:28]} 35. a5 {[%clk 0:00:28]}  Nd5 {[%clk 0:00:27]} 36. Nd3 {[%clk 0:00:26]}  Na3 {[%clk 0:00:25]} 37. Kf1 {[%clk 0:00:20]}  Nc2 {[%clk 0:00:25]} 38. Bxd5 {[%clk 0:00:17]}  Kxd5 {[%clk 0:00:25]} 39. Ke2 {[%clk 0:00:18]}  Kc4 {[%clk 0:00:25]} 40. Kd2 {[%clk 0:00:18]}  Nxb4 {[%clk 0:00:25]} 41. Ne5+ {[%clk 0:00:14]}  Kb5 {[%clk 0:00:25]} 42. Kc3 {[%clk 0:00:15]}  c5 {[%clk 0:00:24]} 43. Nc4 {[%clk 0:00:11]}  Nd5+ {[%clk 0:00:24]} 44. Kb3 {[%clk 0:00:11]}  a6 {[%clk 0:00:24]} 45. f3 {[%clk 0:00:10]}  Nf6 {[%clk 0:00:22]} 46. Nd6+ {[%clk 0:00:07]}  Kc6 {[%clk 0:00:22]} 47. Nc4 {[%clk 0:00:07]}  Kb5 {[%clk 0:00:22]} 48. Nd6+ {[%clk 0:00:07]}  Kxa5 {[%clk 0:00:22]} 49. Kc4 {[%clk 0:00:07]}  Kb6 {[%clk 0:00:22]} 50. e4 {[%clk 0:00:07]}  fxe4 {[%clk 0:00:22]} 51. fxe4 {[%clk 0:00:07]}  Kc6 {[%clk 0:00:22]} 52. e5 {[%clk 0:00:07]}  Ng4 {[%clk 0:00:21]} 53. Nf7 {[%clk 0:00:06]}  a5 {[%clk 0:00:21]} 54. h3 {[%clk 0:00:04]}  Ne3+ {[%clk 0:00:20]} 55. Kd3 {[%clk 0:00:05]}  Nf5 {[%clk 0:00:21]} 56. Kc4 {[%clk 0:00:04]}  Nxg3 {[%clk 0:00:20]} 57. e6 {[%clk 0:00:04]}  Nf5 {[%clk 0:00:20]} 58. Ne5+ {[%clk 0:00:03]}  Kd6 {[%clk 0:00:20]} 59. Nd3 {[%clk 0:00:03]}  Ne3+ {[%clk 0:00:20]} 60. Kc3 {[%clk 0:00:03]}  c4 {[%clk 0:00:21]} 61. Nf4 {[%clk 0:00:01]}  g5 {[%clk 0:00:19]} 62. Ne2 {[%clk 0:00:01]}  Kxe6 {[%clk 0:00:20]} 63. Kd4 {[%clk 0:00:01]}  Ng2 {[%clk 0:00:20]} 64. Kxc4 {[%clk 0:00:01]}  Nf4 {[%clk 0:00:19]} 65. Ng1 {[%clk 0:00:02]}  Kf5 {[%clk 0:00:19]} 66. Kd4 {[%clk 0:00:02]}  h5 {[%clk 0:00:18]} 67. Ke3 {[%clk 0:00:02]}  a4 {[%clk 0:00:18]} 68. Nf3 {[%clk 0:00:02]}  Nxh3 {[%clk 0:00:18]} 69. Nd4+ {[%clk 0:00:03]}  Kg4 {[%clk 0:00:18]} 70. Nc2 {[%clk 0:00:03]}  Kg3 {[%clk 0:00:17]} 71. Ke2 {[%clk 0:00:03]}  g4 {[%clk 0:00:17]} 0-1


[Site "https://www.chess.com"]

[Event "Titled Tuesday Blitz April 26 Late 2022"]
[White "Janaszak, Dawid"]
[Black "Tristan, Leonardo"]
[WhiteFideId "1119206"]
[BlackFideId "113816"]
[WhiteElo "2199"]
[BlackElo "2404"]
[Result "1-0"]
[Round "09"]
[TimeControl "180+1"]
[Date "2022.04.26"]
[WhiteClock "0:00:04"]
[BlackClock "0:00:03"]

1. d4 {[%clk 0:03:00]}  d5 {[%clk 0:03:00]} 2. Bf4 {[%clk 0:03:00]}  Nf6 {[%clk 0:03:00]} 3. Nf3 {[%clk 0:02:56]}  e6 {[%clk 0:03:00]} 4. e3 {[%clk 0:02:56]}  Bd6 {[%clk 0:03:01]} 5. Nbd2 {[%clk 0:02:56]}  O-O {[%clk 0:03:01]} 6. Bd3 {[%clk 0:02:56]}  b6 {[%clk 0:03:01]} 7. Qe2 {[%clk 0:02:51]}  Bb7 {[%clk 0:03:01]} 8. h4 {[%clk 0:02:46]}  c5 {[%clk 0:02:55]} 9. c3 {[%clk 0:02:41]}  Nc6 {[%clk 0:02:55]} 10. Ne5 {[%clk 0:02:37]}  Qc7 {[%clk 0:02:54]} 11. Ndf3 {[%clk 0:02:33]}  Ne4 {[%clk 0:02:54]} 12. Ng5 {[%clk 0:01:42]}  cxd4 {[%clk 0:01:58]} 13. cxd4 {[%clk 0:01:09]}  Nxe5 {[%clk 0:01:00]} 14. dxe5 {[%clk 0:01:09]}  Bxe5 {[%clk 0:01:00]} 15. Nxh7 {[%clk 0:00:38]}  Bxf4 {[%clk 0:00:47]} 16. Nxf8 {[%clk 0:00:17]}  Bd6 {[%clk 0:00:39]} 17. Nh7 {[%clk 0:00:07]}  Kxh7 {[%clk 0:00:37]} 18. f3 {[%clk 0:00:07]}  Bg3+ {[%clk 0:00:34]} 19. Kd1 {[%clk 0:00:05]}  Rd8 {[%clk 0:00:29]} 20. Rc1 {[%clk 0:00:05]}  Qe5 {[%clk 0:00:18]} 21. Kc2 {[%clk 0:00:04]}  f5 {[%clk 0:00:18]} 22. fxe4 {[%clk 0:00:04]}  fxe4 {[%clk 0:00:12]} 23. Ba6 {[%clk 0:00:04]}  Bc6 {[%clk 0:00:04]} 24. Kb1 {[%clk 0:00:04]}  Be8 {[%clk 0:00:05]} 25. h5 {[%clk 0:00:04]}  d4 {[%clk 0:00:05]} 26. exd4 {[%clk 0:00:04]}  Rxd4 {[%clk 0:00:06]} 27. Bc4 {[%clk 0:00:04]}  Bf4 {[%clk 0:00:06]} 28. Rcd1 {[%clk 0:00:03]}  b5 {[%clk 0:00:05]} 29. Bb3 {[%clk 0:00:03]}  a5 {[%clk 0:00:05]} 30. Rxd4 {[%clk 0:00:02]}  Qxd4 {[%clk 0:00:06]} 31. Bc2 {[%clk 0:00:03]}  Bc6 {[%clk 0:00:05]} 32. Re1 {[%clk 0:00:03]}  Qf6 {[%clk 0:00:03]} 33. Bxe4+ {[%clk 0:00:03]}  Bxe4+ {[%clk 0:00:03]} 34. Qxe4+ {[%clk 0:00:04]}  Kh6 {[%clk 0:00:04]} 35. Rf1 {[%clk 0:00:05]}  e5 {[%clk 0:00:02]} 36. g3 {[%clk 0:00:05]}  Kg5 {[%clk 0:00:02]} 37. gxf4+ {[%clk 0:00:05]}  exf4 {[%clk 0:00:02]} 38. Rg1+ {[%clk 0:00:05]}  Kh4 {[%clk 0:00:03]} 39. Qh1# {[%clk 0:00:04]} 1-0


[Site "https://www.chess.com"]

[Event "Titled Tuesday Blitz April 26 Late 2022"]
[White "Kim, Sergey"]
[Black "Dudzinski, Pawel"]
[WhiteFideId "13700570"]
[BlackFideId "1117890"]
[WhiteElo "2487"]
[BlackElo "2033"]
[Result "0-1"]
[Round "09"]
[TimeControl "180+1"]
[Date "2022.04.26"]
[WhiteClock "0:01:13"]
[BlackClock "0:00:20"]

1. d4 {[%clk 0:03:00]}  f5 {[%clk 0:02:53]} 2. c4 {[%clk 0:03:00]}  Nf6 {[%clk 0:02:54]} 3. g3 {[%clk 0:03:01]}  g6 {[%clk 0:02:54]} 4. Bg2 {[%clk 0:03:01]}  Bg7 {[%clk 0:02:55]} 5. Nf3 {[%clk 0:03:02]}  d6 {[%clk 0:02:56]} 6. O-O {[%clk 0:03:03]}  O-O {[%clk 0:02:56]} 7. Nc3 {[%clk 0:03:03]}  Qe8 {[%clk 0:02:57]} 8. Re1 {[%clk 0:03:02]}  Qf7 {[%clk 0:02:44]} 9. d5 {[%clk 0:03:02]}  h6 {[%clk 0:02:42]} 10. Nd4 {[%clk 0:03:01]}  Ne4 {[%clk 0:02:30]} 11. e3 {[%clk 0:02:56]}  Nxc3 {[%clk 0:02:28]} 12. bxc3 {[%clk 0:02:56]}  Na6 {[%clk 0:02:23]} 13. a4 {[%clk 0:02:54]}  Bd7 {[%clk 0:02:22]} 14. Ba3 {[%clk 0:02:53]}  b6 {[%clk 0:02:18]} 15. a5 {[%clk 0:02:53]}  Nc5 {[%clk 0:02:16]} 16. Bb4 {[%clk 0:02:51]}  Ne4 {[%clk 0:02:11]} 17. Qd3 {[%clk 0:02:47]}  e5 {[%clk 0:01:39]} 18. dxe6 {[%clk 0:02:29]}  Bxe6 {[%clk 0:01:39]} 19. axb6 {[%clk 0:02:22]}  Bxc4 {[%clk 0:01:36]} 20. Qc2 {[%clk 0:02:19]}  c5 {[%clk 0:01:31]} 21. b7 {[%clk 0:02:14]}  Qxb7 {[%clk 0:01:25]} 22. Reb1 {[%clk 0:02:08]}  cxb4 {[%clk 0:01:14]} 23. Rxb4 {[%clk 0:02:06]}  Qc7 {[%clk 0:01:00]} 24. Bxe4 {[%clk 0:02:05]}  fxe4 {[%clk 0:01:01]} 25. Qxe4 {[%clk 0:02:06]}  Qf7 {[%clk 0:00:45]} 26. f4 {[%clk 0:01:59]}  Bd5 {[%clk 0:00:44]} 27. Qd3 {[%clk 0:01:57]}  Rfb8 {[%clk 0:00:35]} 28. e4 {[%clk 0:01:48]}  Rxb4 {[%clk 0:00:28]} 29. cxb4 {[%clk 0:01:48]}  Bc4 {[%clk 0:00:26]} 30. Qe3 {[%clk 0:01:46]}  Qb7 {[%clk 0:00:22]} 31. Rb1 {[%clk 0:01:42]}  Qb6 {[%clk 0:00:21]} 32. Rd1 {[%clk 0:01:41]}  Qxb4 {[%clk 0:00:21]} 33. f5 {[%clk 0:01:31]}  Qc5 {[%clk 0:00:21]} 34. fxg6 {[%clk 0:01:30]}  Rf8 {[%clk 0:00:20]} 35. Kg2 {[%clk 0:01:26]}  Bxd4 {[%clk 0:00:19]} 36. Rxd4 {[%clk 0:01:25]}  Bf1+ {[%clk 0:00:19]} 37. Kg1 {[%clk 0:01:24]}  Bh3 {[%clk 0:00:19]} 38. Qb3+ {[%clk 0:01:16]}  Kh8 {[%clk 0:00:19]} 39. g7+ {[%clk 0:01:13]}  Kxg7 {[%clk 0:00:19]} 40. Qb7+ {[%clk 0:01:13]}  Kh8 {[%clk 0:00:20]} 0-1


[Site "https://www.chess.com"]

[Event "Titled Tuesday Blitz April 26 Late 2022"]
[White "Leschinsky, Gary"]
[Black "Gnechko, Ruslan"]
[WhiteFideId "30951321"]
[BlackFideId "14135868"]
[WhiteElo "1782"]
[BlackElo "2289"]
[Result "1-0"]
[Round "09"]
[TimeControl "180+1"]
[Date "2022.04.26"]
[WhiteClock "0:00:23"]
[BlackClock "0:00:06"]

1. d4 {[%clk 0:02:59]}  Nf6 {[%clk 0:02:58]} 2. c4 {[%clk 0:02:59]}  e6 {[%clk 0:02:59]} 3. Nc3 {[%clk 0:02:58]}  Bb4 {[%clk 0:02:59]} 4. f3 {[%clk 0:02:57]}  d5 {[%clk 0:02:55]} 5. a3 {[%clk 0:02:56]}  Be7 {[%clk 0:02:54]} 6. e4 {[%clk 0:02:53]}  dxe4 {[%clk 0:02:54]} 7. fxe4 {[%clk 0:02:54]}  c5 {[%clk 0:02:50]} 8. d5 {[%clk 0:02:51]}  exd5 {[%clk 0:02:50]} 9. exd5 {[%clk 0:02:52]}  O-O {[%clk 0:02:49]} 10. Be2 {[%clk 0:02:43]}  Bd6 {[%clk 0:02:49]} 11. Nf3 {[%clk 0:02:42]}  Bg4 {[%clk 0:02:46]} 12. O-O {[%clk 0:02:39]}  a6 {[%clk 0:02:46]} 13. Bg5 {[%clk 0:02:32]}  h6 {[%clk 0:02:35]} 14. Bh4 {[%clk 0:02:18]}  Nbd7 {[%clk 0:02:12]} 15. h3 {[%clk 0:02:13]}  Bh5 {[%clk 0:02:04]} 16. Nd2 {[%clk 0:02:07]}  Bxe2 {[%clk 0:02:03]} 17. Qxe2 {[%clk 0:02:08]}  Re8 {[%clk 0:02:02]} 18. Qd1 {[%clk 0:02:04]}  Be5 {[%clk 0:01:54]} 19. Nde4 {[%clk 0:01:51]}  Bd4+ {[%clk 0:01:51]} 20. Kh1 {[%clk 0:01:46]}  g5 {[%clk 0:01:51]} 21. Nxf6+ {[%clk 0:01:46]}  Nxf6 {[%clk 0:01:47]} 22. Bg3 {[%clk 0:01:44]}  Qd7 {[%clk 0:01:23]} 23. Ne2 {[%clk 0:01:30]}  Ne4 {[%clk 0:01:07]} 24. Be1 {[%clk 0:01:24]}  Bxb2 {[%clk 0:01:05]} 25. Rb1 {[%clk 0:01:24]}  Bg7 {[%clk 0:01:01]} 26. Qd3 {[%clk 0:01:22]}  b5 {[%clk 0:00:53]} 27. Ng3 {[%clk 0:01:07]}  bxc4 {[%clk 0:00:49]} 28. Qxc4 {[%clk 0:01:05]}  Nxg3+ {[%clk 0:00:44]} 29. Bxg3 {[%clk 0:01:06]}  Bd4 {[%clk 0:00:41]} 30. d6 {[%clk 0:01:02]}  Re3 {[%clk 0:00:38]} 31. Bh2 {[%clk 0:00:53]}  Rae8 {[%clk 0:00:28]} 32. Qd5 {[%clk 0:00:40]}  R8e6 {[%clk 0:00:25]} 33. Rb7 {[%clk 0:00:39]}  Rxd6 {[%clk 0:00:14]} 34. Rxd7 {[%clk 0:00:33]}  Rxd5 {[%clk 0:00:13]} 35. Rxd5 {[%clk 0:00:34]}  Rxa3 {[%clk 0:00:12]} 36. Bd6 {[%clk 0:00:29]}  Rc3 {[%clk 0:00:09]} 37. Be5 {[%clk 0:00:23]}  Be3 {[%clk 0:00:06]} 1-0


[Site "https://www.chess.com"]